bitfinex-derivatives/quotes_BNBF0:USTF0_20250406
["timestamp","ask_amount","ask_price","bid_price","bid_amount"]
[1743942632088,0.58139189,588.79,588.19,0.28223831]
[1743942632288,0.58139189,588.78,588.2,0.28223831]
[1743942632585,0.29562676,588.86,588.21,0.28223831]
[1743942632788,0.58129272,588.85,588.13,0.28223831]
[1743942632986,0.58129272,588.84,588.13,0.28223831]
[1743942633186,0.58129272,588.83,588.13,0.28223831]
[1743942633385,0.58129272,588.82,588.13,0.28223831]
[1743942633684,0.58129272,588.81,588.13,0.28223831]
[1743942633886,0.58129272,588.8,588.13,0.28223831]
[1743942634183,0.58129272,588.79,588.13,0.28223831]
[1743942634383,0.58129272,588.78,588.13,0.28223831]
[1743942634584,0.58129272,588.77,588.13,0.28223831]
[1743942634786,0.477,588.9,588.13,0.28223831]
[1743942634989,0.58121816,588.89,588.14,0.28228739]
[1743942635188,0.29563053,588.86,588.13,0.28228739]
[1743942635388,0.58121816,588.85,588.14,0.28228739]
[1743942635588,0.58121816,588.84,588.13,0.28228739]
[1743942635889,0.58121816,588.83,588.14,0.28228739]
[1743942636088,0.58121816,588.82,588.13,0.28228739]
[1743942636288,0.58114545,588.81,588.14,0.28228739]
[1743942636484,0.58114545,588.85,588.13,0.28228739]
[1743942636688,0.58114545,588.84,588.14,0.28228739]
[1743942636891,0.58114545,588.83,588.13,0.28228739]
[1743942637087,0.58114545,588.82,588.14,0.28228739]
[1743942637286,0.58114545,588.89,588.2,1.27319059]
[1743942637487,0.58114545,588.88,588.21,0.28228739]
[1743942637686,0.58114545,588.87,588.21,0.28228739]
[1743942637985,0.58114545,588.86,588.21,0.28228739]
[1743942638186,0.58114545,588.85,588.21,0.28228739]
[1743942638388,0.58114545,588.84,588.21,0.28228739]
[1743942638591,0.58114545,588.83,588.21,0.28228739]
[1743942638792,0.58114545,588.82,588.21,0.28228739]
[1743942638987,0.58114545,588.85,588.21,0.28228739]
[1743942639186,0.58114545,588.84,588.21,0.28228739]
[1743942639389,0.58114545,588.83,588.21,0.28228739]
[1743942639586,0.58114545,588.82,588.21,0.28228739]
[1743942639886,0.58114545,588.81,588.21,0.28228739]
[1743942640091,0.58114545,588.8,588.22,0.2823412]
[1743942640287,0.58114545,588.79,588.21,0.2823412]
[1743942640490,0.58114545,588.89,588.22,0.2823412]
[1743942640690,0.58114545,588.88,588.13,0.2823412]
[1743942640886,0.58114545,588.87,588.14,0.2823412]
[1743942641089,0.58114545,588.86,588.13,0.2823412]
[1743942641289,0.58102366,588.85,588.14,0.2823412]
[1743942641485,0.58102366,588.84,588.13,0.2823412]
[1743942641785,0.58102366,588.83,588.14,0.2823412]
[1743942641991,0.58102366,588.82,588.13,0.2823412]
[1743942642187,0.58102366,588.81,588.13,0.2823412]
[1743942642391,0.58102366,588.8,588.13,0.2823412]
[1743942642691,0.58102366,588.79,588.13,0.2823412]
[1743942642887,0.58102366,588.78,588.13,0.2823412]
[1743942643089,0.58102366,588.77,588.13,0.2823412]
[1743942643285,0.58102366,588.76,588.13,0.2823412]
[1743942643487,0.58102366,588.75,588.12,0.34006665]
[1743942643693,0.482,588.77,588.13,0.28234175]
[1743942643892,0.58095256,588.76,588.13,0.28234175]
[1743942644092,0.58095256,588.75,588.13,0.28234175]
[1743942644293,0.482,588.77,588.13,0.28234175]
[1743942644494,0.58092972,588.76,588.13,0.28234175]
[1743942644692,0.58092972,588.75,588.13,0.28234175]
[1743942644895,0.482,588.77,588.13,0.28234175]
[1743942645088,0.58092921,588.76,588.12,0.34006665]
[1743942645289,0.58092921,588.75,588.13,0.2823422]
[1743942645589,0.482,588.77,588.13,0.2823422]
[1743942645794,0.5809076,588.76,588.13,0.2823422]
[1743942646094,0.5809076,588.75,588.13,0.2823422]
[1743942646291,0.482,588.77,588.13,0.2823422]
[1743942646491,0.58088833,588.76,588.13,0.2823422]
[1743942646696,0.58088861,588.75,588.13,0.2823422]
[1743942646897,0.482,588.77,588.13,0.2823422]
[1743942647193,0.58088865,588.76,588.13,0.2823422]
[1743942647397,0.58088865,588.75,588.13,0.2823422]
[1743942647597,0.482,588.77,588.13,0.2823422]
[1743942647797,0.58087397,588.76,588.13,0.2823422]
[1743942647994,0.58087397,588.75,588.13,0.2823422]
[1743942648192,0.482,588.77,588.13,0.2823422]
[1743942648398,0.58086439,588.76,588.13,0.2823422]
[1743942648594,0.58086873,588.75,588.13,0.2823422]
[1743942648793,0.482,588.77,588.13,0.2823422]
[1743942648997,0.58086817,588.76,588.13,0.2823422]
[1743942649194,0.58086817,588.75,588.13,0.2823422]
[1743942649497,0.5808594,588.74,588.13,0.2823422]
[1743942649697,0.482,588.77,588.13,0.2823422]
[1743942649898,0.58085953,588.76,588.13,0.2823422]
[1743942650099,0.58085953,588.75,588.13,0.2823422]
[1743942650300,0.482,588.77,588.13,0.2823422]
[1743942650501,0.58085652,588.76,588.13,0.2823422]
[1743942650697,0.58085652,588.75,588.13,0.2823422]
[1743942650995,0.482,588.77,588.13,0.2823422]
[1743942651299,0.58085234,588.76,588.13,0.2823422]
[1743942651498,0.482,588.77,588.13,0.2823422]
[1743942651698,0.58085531,588.76,588.13,0.2823422]
[1743942651901,0.482,588.77,588.14,0.28235409]
[1743942652100,0.5808557,588.76,588.13,0.28235409]
[1743942652299,0.482,588.77,588.15,0.28235409]
[1743942652498,0.58086669,588.76,588.16,0.28235409]
[1743942652703,0.58087103,588.75,588.13,0.28235409]
[1743942652900,0.482,588.77,588.13,0.28235409]
[1743942653102,0.58087103,588.76,588.13,0.28235409]
[1743942653301,0.58087103,588.75,588.13,0.28235409]
[1743942653502,0.58087103,588.74,588.13,0.28235409]
[1743942653703,0.482,588.77,588.13,0.28235409]
[1743942653900,0.58087932,588.76,588.13,0.28235409]
[1743942654100,0.58087932,588.75,588.13,0.28235409]
[1743942654298,0.58087932,588.74,588.13,0.28235409]
[1743942654502,0.482,588.77,588.13,0.28235409]
[1743942654702,0.58088018,588.76,588.13,0.28235409]
[1743942654903,0.58088018,588.75,588.13,0.28235409]
[1743942655101,0.58088018,588.74,588.13,0.28235409]
[1743942655401,0.482,588.77,588.14,0.28237676]
[1743942655602,0.58088651,588.76,588.13,0.28237676]
[1743942655797,0.58088651,588.75,588.13,0.28237676]
[1743942655997,0.482,588.77,588.13,0.28237676]
[1743942656298,0.58087488,588.76,588.13,0.28237676]
[1743942656497,0.482,588.77,588.13,0.28237676]
[1743942656901,0.482,588.77,588.12,0.34006665]
[1743942657101,0.482,588.77,588.14,0.28231604]
[1743942657301,0.482,588.77,588.15,0.28231604]
[1743942657506,0.482,588.77,588.13,0.28231604]
[1743942657807,0.482,588.77,588.14,0.28231604]
[1743942658004,0.482,588.77,588.13,0.28231604]
[1743942660105,0.482,588.77,588.15,1.27319059]
[1743942660509,0.482,588.77,588.16,0.28231604]
[1743942662611,0.482,588.77,588.21,1.27319059]
[1743942662813,0.482,588.77,588.22,0.28221057]
[1743942663310,0.482,588.77,588.21,1.27319059]
[1743942663511,0.482,588.77,588.22,0.28221888]
[1743942663807,0.482,588.77,588.21,1.27319059]
[1743942664010,0.482,588.77,588.22,0.28221764]
[1743942664913,0.482,588.77,588.19,1.27319059]
[1743942665106,0.482,588.77,588.2,0.28221731]
[1743942666506,0.482,588.77,588.19,1.27319059]
[1743942666705,0.482,588.77,588.2,0.28221132]
[1743942667506,0.482,588.77,588.17,1.27319059]
[1743942667507,0.482,588.77,588.18,0.28221132]
[1743942668412,0.482,588.77,588.19,0.2821924]
[1743942668712,0.482,588.77,588.2,0.2821924]
[1743942668912,0.482,588.77,588.18,0.2821924]
[1743942669414,0.58111775,588.87,588.18,0.2821924]
[1743942669610,0.58111775,588.86,588.18,0.2821924]
[1743942669809,0.29558659,588.92,588.18,0.2821924]
[1743942670008,0.58115221,588.91,588.13,0.2821924]
[1743942670312,0.58115221,588.9,588.14,0.2821924]
[1743942670513,0.58115221,588.89,588.13,0.2821924]
[1743942670714,0.58115221,588.88,588.14,0.2821924]
[1743942670914,0.58115221,588.87,588.13,0.2821924]
[1743942671114,0.58115221,588.86,588.13,0.2821924]
[1743942671315,0.58115221,588.85,588.13,0.2821924]
[1743942671515,0.58115221,588.84,588.13,0.2821924]
[1743942671709,0.58120164,588.83,588.13,0.2821924]
[1743942672013,0.58120164,588.82,588.13,0.2821924]
[1743942672208,0.58120164,588.81,588.13,0.2821924]
[1743942672415,0.58120164,588.8,588.14,0.28225429]
[1743942672614,0.58120164,588.79,588.13,0.28225429]
[1743942672818,0.58120164,588.78,588.14,0.28225429]
[1743942673017,0.58120164,588.81,588.15,0.28225429]
[1743942673218,0.58128518,588.8,588.13,0.28225429]
[1743942673416,0.58128518,588.79,588.14,0.28225429]
[1743942673616,0.58128518,588.78,588.14,0.28225429]
[1743942673819,0.5813027,588.77,588.15,0.28225429]
[1743942674014,0.5813027,588.76,588.13,0.28225429]
[1743942674221,0.671,588.82,588.13,0.28225429]
[1743942674515,0.5813251,588.81,588.13,0.28225429]
[1743942674720,0.5813251,588.8,588.13,0.28225429]
[1743942674920,0.5813251,588.79,588.13,0.28225429]
[1743942675114,0.5813251,588.78,588.13,0.28225429]
[1743942675315,0.5813251,588.77,588.13,0.28225429]
[1743942675519,0.5813251,588.76,588.13,0.28225429]
[1743942675716,0.671,588.82,588.13,0.28225429]
[1743942676018,0.5813363,588.81,588.13,0.28225429]
[1743942676220,0.5813363,588.8,588.13,0.28225429]
[1743942676422,0.5813363,588.79,588.13,0.28225429]
[1743942676615,0.5813363,588.78,588.12,0.34006665]
[1743942676816,0.5813363,588.77,588.13,0.282346]
[1743942677016,0.5813363,588.76,588.13,0.282346]
[1743942677317,0.5813363,588.75,588.13,0.282346]
[1743942677516,0.671,588.82,588.13,0.282346]
[1743942677720,0.58136436,588.81,588.13,0.282346]
[1743942677926,0.58136436,588.8,588.13,0.282346]
[1743942678126,0.58136436,588.79,588.13,0.282346]
[1743942678326,0.58136436,588.78,588.13,0.282346]
[1743942678528,0.58136436,588.77,588.12,0.34006665]
[1743942678728,0.58136436,588.76,588.12,0.34006665]
[1743942678926,0.58136436,588.75,588.12,0.34006665]
[1743942679123,0.58136436,588.74,587.93,1.27319059]
[1743942679328,0.58136436,588.73,587.94,0.28249828]
[1743942679523,0.58136436,588.72,587.94,0.28249828]
[1743942679722,0.58136436,588.71,587.94,0.28249828]
[1743942680024,0.58136436,588.7,587.94,0.28249828]
[1743942680226,0.58136436,588.69,587.94,0.28249828]
[1743942680426,0.29567323,588.79,587.94,0.28249828]
[1743942680427,0.58136436,588.68,587.94,0.28249828]
[1743942680627,0.58136436,588.67,587.86,0.28249828]
[1743942680828,0.58136436,588.66,587.86,0.28249828]
[1743942681030,0.58131193,588.65,587.86,0.28249828]
[1743942681225,0.29567323,588.79,587.86,0.28249828]
[1743942681525,0.58125194,588.78,587.86,0.28249828]
[1743942681731,0.58125194,588.77,587.86,0.28249828]
[1743942681930,0.58125194,588.76,587.86,0.28249828]
[1743942682125,0.58125194,588.75,587.81,0.28249828]
[1743942682326,0.58125194,588.75,587.8,1.27319059]
[1743942682327,0.58125194,588.74,587.87,0.28249828]
[1743942682527,0.58120935,588.73,587.88,0.28249828]
[1743942682726,0.58120935,588.72,587.81,0.28249828]
[1743942682930,0.58120935,588.71,587.81,0.28249828]
[1743942683127,0.58120935,588.7,587.82,0.29570589]
[1743942683331,0.58120935,588.69,587.83,0.28249828]
[1743942683632,0.58120935,588.68,587.84,0.62266927]
[1743942683831,0.29570589,588.73,587.85,0.62266348]
[1743942684032,0.58119966,588.72,587.86,0.28244064]
[1743942684332,0.58119966,588.71,587.86,0.28244064]
[1743942684528,0.58119966,588.7,587.86,0.28244064]
[1743942684732,0.58119966,588.69,587.86,0.28244064]
[1743942684933,0.58119966,588.68,587.86,0.28244064]
[1743942685130,0.29570589,588.73,587.85,0.34022284]
[1743942685433,0.58117187,588.72,587.86,0.28243685]
[1743942685634,0.58117187,588.71,587.86,0.28243685]
[1743942685835,0.58117187,588.7,587.86,0.28243685]
[1743942686034,0.58117187,588.69,587.86,0.28243685]
[1743942686337,0.29570589,588.73,587.87,0.34021127]
[1743942686538,0.58115242,588.72,587.88,0.28243685]
[1743942686734,0.58115242,588.71,587.87,0.34021127]
[1743942686934,0.29570589,588.73,587.88,0.28239155]
[1743942687139,0.58114038,588.72,587.89,0.34019969]
[1743942687438,0.58114038,588.71,587.9,0.28239155]
[1743942687638,0.29570589,588.73,587.92,1.27319059]
[1743942687838,0.58114709,588.72,587.93,0.2823923]
[1743942688034,0.29570589,588.73,587.93,0.2823923]
[1743942689440,0.29570589,588.73,587.95,1.27319059]
[1743942689640,0.29570589,588.73,587.96,0.2823923]
[1743942690938,0.58114709,588.96,587.96,0.2823923]
[1743942691138,0.58114709,588.95,587.96,0.2823923]
[1743942691444,0.58114709,588.94,587.96,0.2823923]
[1743942691639,0.58114709,588.93,587.95,1.27319059]
[1743942691838,0.58114709,588.92,587.96,0.28254645]
[1743942692139,0.58114709,588.91,587.95,1.27319059]
[1743942692442,0.58114709,588.9,587.95,1.27319059]
[1743942692744,0.58114709,588.89,587.95,1.27319059]
[1743942692937,0.58114709,588.88,587.95,1.27319059]
[1743942693140,0.58114709,588.87,587.95,1.27319059]
[1743942693342,0.58114709,588.86,587.95,1.27319059]
[1743942693541,0.58114709,588.85,587.96,0.28258734]
[1743942693741,0.58114709,588.84,587.95,1.27319059]
[1743942693942,0.58114709,588.83,587.96,0.28263085]
[1743942694138,0.58114709,588.82,587.96,0.28263085]
[1743942694342,0.58114709,588.81,587.96,0.28263085]
[1743942694544,0.58114709,588.8,587.9,0.28263085]
[1743942694839,0.58114709,588.79,587.91,0.28263085]
[1743942695043,0.58114709,588.78,587.9,0.28263085]
[1743942695243,0.58114709,588.77,587.91,0.28263085]
[1743942695444,0.58114709,588.76,587.89,0.34019969]
[1743942695645,0.58114709,588.75,587.9,0.28263213]
[1743942695845,0.58114709,588.74,587.9,0.28263213]
[1743942696043,0.58114709,588.73,587.9,0.28263213]
[1743942696244,0.58114709,588.72,587.9,0.28263213]
[1743942696544,0.58114709,588.71,587.9,0.28263213]
[1743942696744,0.58114709,588.7,587.9,0.28263213]
[1743942696942,0.58114709,588.69,587.9,0.28263213]
[1743942697144,0.58114709,588.68,587.9,0.28263213]
[1743942697341,0.58114709,588.67,587.9,0.28263213]
[1743942697546,0.58114709,588.66,587.9,0.28263213]
[1743942697746,0.58114709,588.66,587.89,0.34019969]
[1743942697747,0.58114709,588.65,587.89,0.34019969]
[1743942697945,0.58114709,588.64,587.9,0.28261552]
[1743942698141,0.58114709,588.63,587.9,0.28261552]
[1743942698346,0.58114709,588.62,587.9,0.28261552]
[1743942698546,0.58114709,588.64,587.9,0.28261552]
[1743942698845,0.58114709,588.63,587.9,0.28261552]
[1743942699046,0.58114709,588.62,587.9,0.28261552]
[1743942699246,0.58114709,588.64,587.9,0.28261552]
[1743942699447,0.58114709,588.63,587.9,0.28261552]
[1743942699646,0.58114709,588.62,587.9,0.28261552]
[1743942699843,0.58114709,588.61,587.9,0.28261552]
[1743942700044,0.58114709,588.64,587.9,0.28261552]
[1743942700247,0.58114709,588.63,587.9,0.28261552]
[1743942700443,0.58114709,588.62,587.9,0.28261552]
[1743942700647,0.58114709,588.64,587.9,0.28261552]
[1743942700848,0.58114709,588.63,587.9,0.28261552]
[1743942701047,0.58114709,588.62,587.9,0.28261552]
[1743942701247,0.29571092,588.65,587.9,0.28261552]
[1743942701248,0.58114709,588.64,587.9,0.28261552]
[1743942701445,0.58114709,588.63,587.9,0.28261552]
[1743942701643,0.58114709,588.62,587.9,0.28261552]
[1743942701943,0.58114709,588.64,587.9,0.28261552]
[1743942702146,0.58114709,588.63,587.9,0.28261552]
[1743942702446,0.58114709,588.64,587.9,0.28261552]
[1743942703146,0.58114709,588.94,587.9,0.28261552]
[1743942703343,0.58114709,588.93,587.9,0.28261552]
[1743942703547,0.58114709,588.92,587.9,0.28261552]
[1743942703750,0.58114709,588.91,587.9,0.28261552]
[1743942703952,0.58114709,588.9,587.9,0.28261552]
[1743942704150,0.58114709,588.89,587.9,0.28261552]
[1743942704353,0.58114709,588.88,587.9,0.28261552]
[1743942704549,0.58114709,588.87,587.9,0.28261552]
[1743942704753,0.58114709,588.86,587.9,0.28261552]
[1743942704954,0.58114709,588.85,587.9,0.28261552]
[1743942705154,0.58114709,588.84,587.9,0.28261552]
[1743942705355,0.58114709,588.83,587.9,0.28261552]
[1743942705555,0.58114709,588.82,587.9,0.28261552]
[1743942705748,0.58114709,588.81,587.9,0.28261552]
[1743942705953,0.58114709,588.8,587.9,0.28261552]
[1743942706151,0.58114709,588.79,587.9,0.28261552]
[1743942706353,0.58114709,588.78,587.9,0.28261552]
[1743942706554,0.58114709,588.77,587.9,0.28261552]
[1743942706750,0.58114709,588.76,587.86,1.27319059]
[1743942706955,0.58114709,588.75,587.87,0.2828344]
[1743942707256,0.58114709,588.74,587.76,1.27319059]
[1743942707457,0.58114709,588.73,587.76,1.27319059]
[1743942707651,0.58114709,588.72,587.77,0.28283555]
[1743942707851,0.58114709,588.71,587.77,0.28283555]
[1743942708052,0.58114709,588.7,587.78,0.28283618]
[1743942708353,0.58114709,588.69,587.79,0.28283618]
[1743942708555,0.58114709,588.68,587.77,0.28283618]
[1743942708754,0.58114709,588.67,587.77,0.28283618]
[1743942708951,0.58114709,588.66,587.58,0.28283618]
[1743942709155,0.58114709,588.65,587.51,0.28283618]
[1743942709358,0.58114709,588.64,587.52,0.62325012]
[1743942709658,0.495,588.95,587.53,0.28283618]
[1743942709863,0.33966814,588.81,587.54,0.34040235]
[1743942710158,0.29581021,588.63,587.55,0.28283618]
[1743942710358,0.5793402,588.62,587.55,0.28283618]
[1743942710658,0.5793402,588.61,587.55,0.28283618]
[1743942710859,0.5793402,588.6,587.56,0.28284863]
[1743942711059,0.5793402,588.59,587.55,0.28284863]
[1743942711260,0.5793402,588.58,587.56,0.28284863]
[1743942711461,0.5793402,588.57,587.55,0.28284863]
[1743942711654,0.5793402,588.56,587.56,0.28284863]
[1743942711854,0.5793402,588.55,587.55,0.28284863]
[1743942712053,0.29582529,588.6,587.55,0.28284863]
[1743942712054,0.5793402,588.54,587.55,0.28284863]
[1743942712253,0.5793402,588.59,587.55,0.28284863]
[1743942712453,0.5793402,588.58,587.54,0.34040235]
[1743942712658,0.5793402,588.57,587.56,0.28285519]
[1743942712855,0.5793402,588.56,587.55,0.28285519]
[1743942713059,0.5793402,588.55,587.56,0.28285519]
[1743942713256,0.5793402,588.59,587.55,0.28285519]
[1743942713459,0.5793402,588.58,587.56,0.28285519]
[1743942713662,0.5793402,588.57,587.55,0.28285519]
[1743942713861,0.5793402,588.59,587.55,0.28285519]
[1743942714162,0.5793402,588.58,587.55,0.28285519]
[1743942714462,0.5793402,588.59,587.55,0.28285519]
[1743942714662,0.5793402,588.58,587.55,0.28285519]
[1743942714963,0.5793402,588.59,587.55,0.28285519]
[1743942715164,0.29585925,588.57,587.55,0.28285519]
[1743942716157,0.29585925,588.57,587.56,0.28285681]
[1743942716358,0.29585925,588.57,587.55,0.28285681]
[1743942717565,0.29585925,588.57,587.54,0.34040235]
[1743942717766,0.29585925,588.57,587.55,0.28285632]
[1743942717967,0.5793402,588.67,587.55,0.28285632]
[1743942718266,0.2958517,588.56,587.55,0.28285632]
[1743942718465,0.5793402,588.65,587.56,0.28286492]
[1743942718666,0.5793402,588.64,587.55,0.28286492]
[1743942718861,0.33966814,588.81,587.54,0.34040235]
[1743942718862,0.5793402,588.8,587.57,0.28286492]
[1743942719060,0.91901988,588.79,587.58,0.28286492]
[1743942719263,0.29583284,588.63,587.59,0.28286492]
[1743942719466,0.5793402,588.77,587.54,0.34040235]
[1743942719664,0.91903719,588.76,587.55,0.28285677]
[1743942719862,0.91904296,588.75,587.55,0.28285677]
[1743942720064,0.91904873,588.74,587.55,0.28285677]
[1743942720262,0.9190545,588.73,587.55,0.28285677]
[1743942720463,0.91906027,588.72,587.55,0.28285677]
[1743942720667,0.91906604,588.71,587.55,0.28285677]
[1743942720861,0.5793402,588.7,587.55,0.28285677]
[1743942721061,0.5793402,588.69,587.54,0.34040235]
[1743942721264,0.5793402,588.68,587.55,0.2828561]
[1743942721466,0.5793402,588.67,587.55,0.2828561]
[1743942721666,0.33973161,588.7,587.55,0.2828561]
[1743942721867,0.57789509,588.69,587.55,0.2828561]
[1743942722068,0.57789509,588.68,587.55,0.2828561]
[1743942722269,0.57789509,588.67,587.55,0.2828561]
[1743942722469,0.57789509,588.66,587.55,0.2828561]
[1743942722673,0.57789509,588.65,587.55,0.2828561]
[1743942722869,0.57789509,588.64,587.55,0.2828561]
[1743942723063,0.57789509,588.63,587.55,0.2828561]
[1743942723262,0.57789509,588.62,587.55,0.2828561]
[1743942723471,0.90673161,588.7,587.55,0.2828561]
[1743942723668,0.57770924,588.69,587.55,0.2828561]
[1743942723865,0.57770924,588.68,587.55,0.2828561]
[1743942724062,0.57770924,588.67,587.55,0.2828561]
[1743942724268,0.57770924,588.66,587.55,0.2828561]
[1743942724467,0.57770924,588.65,587.55,0.2828561]
[1743942724769,0.57770924,588.64,587.55,0.2828561]
[1743942724963,0.57770924,588.63,587.55,0.2828561]
[1743942725169,0.57770924,588.62,587.55,0.2828561]
[1743942725470,0.57766224,588.61,587.55,0.2828561]
[1743942725771,0.57766224,588.63,587.55,0.2828561]
[1743942726069,0.57766224,588.62,587.55,0.2828561]
[1743942726269,0.57766224,588.61,587.55,0.2828561]
[1743942726564,0.57766224,588.63,587.55,0.2828561]
[1743942726794,0.29586931,588.64,587.55,0.2828561]
[1743942729895,0.57766224,588.69,587.55,0.2828561]
[1743942730396,0.57766224,588.68,587.55,0.2828561]
[1743942730594,0.90673161,588.7,587.55,0.2828561]
[1743942730985,0.57785171,588.69,587.55,0.2828561]
[1743942731194,0.29584667,588.69,587.54,0.34040235]
[1743942731408,0.57796432,588.68,587.55,0.28286756]
[1743942732103,0.29584667,588.69,587.55,0.28286756]
[1743942733198,0.57808865,588.68,587.55,0.28286756]
[1743942733891,0.57808865,588.67,587.55,0.28286756]
[1743942734189,0.57808865,588.66,587.55,0.28286756]
[1743942734388,0.57811529,588.65,587.55,0.28286756]
[1743942734588,0.57811529,588.64,587.54,0.34040235]
[1743942734881,0.57811529,588.63,587.55,0.28286671]
[1743942735071,0.57811529,588.62,587.55,0.28286671]
[1743942735272,0.57811529,588.61,587.55,0.28286671]
[1743942735470,0.57811529,588.6,587.55,0.28286671]
[1743942735671,0.57811529,588.59,587.55,0.28286671]
[1743942735974,0.57811529,588.58,587.55,0.28286671]
[1743942736175,0.57819095,588.57,587.55,0.28286671]
[1743942736374,0.57819095,588.56,587.55,0.28286671]
[1743942736569,0.57819095,588.69,587.55,0.28286671]
[1743942736774,0.57819095,588.68,587.55,0.28286671]
[1743942736970,0.57819095,588.67,587.55,0.28286671]
[1743942737275,0.57819095,588.66,587.55,0.28286671]
[1743942737474,0.57819095,588.65,587.55,0.28286671]
[1743942737674,0.57819095,588.64,587.55,0.28286671]
[1743942737871,0.57819095,588.63,587.54,0.34040235]
[1743942738075,0.57819095,588.62,587.55,0.28286728]
[1743942738370,0.57819095,588.61,587.55,0.28286728]
[1743942738575,0.57819095,588.6,587.55,0.28286728]
[1743942738876,0.57819095,588.59,587.55,0.28286728]
[1743942739074,0.57819095,588.58,587.55,0.28286728]
[1743942739275,0.57819095,588.57,587.55,0.28286728]
[1743942739469,0.57819095,588.56,587.55,0.28286728]
[1743942739670,0.57819095,588.68,587.55,0.28286728]
[1743942739873,0.57819095,588.67,587.56,0.28286677]
[1743942740071,0.57819095,588.66,587.55,0.28286677]
[1743942740274,0.57819095,588.65,587.57,0.28286677]
[1743942740473,0.57819095,588.64,587.58,0.28286677]
[1743942740668,0.57819095,588.63,587.55,0.28286677]
[1743942740876,0.57819095,588.62,587.56,0.28286677]
[1743942741072,0.57819095,588.61,587.55,0.28286677]
[1743942741272,0.57819095,588.66,587.59,1.27319059]
[1743942741472,0.57819095,588.65,587.6,0.28286677]
[1743942741672,0.57819095,588.66,587.6,0.28286677]
[1743942741877,0.57819095,588.65,587.6,0.28286677]
[1743942742077,0.57819095,588.66,587.6,0.28286677]
[1743942742280,0.57819095,588.65,587.6,0.28286677]
[1743942742477,0.57819095,588.66,587.6,0.28286677]
[1743942742681,0.57819095,588.65,587.6,0.28286677]
[1743942742884,0.57819095,588.66,587.63,1.27319059]
[1743942743183,0.57819095,588.65,587.64,0.28286677]
[1743942743477,0.57819095,588.66,587.64,0.28286677]
[1743942743679,0.57819095,588.65,587.64,0.28286677]
[1743942743879,0.57819095,588.66,587.64,0.28286677]
[1743942744078,0.57819095,588.65,587.64,0.28286677]
[1743942744281,0.57819095,588.64,587.64,0.28286677]
[1743942744477,0.57819095,588.66,587.64,0.28286677]
[1743942744677,0.57819095,588.65,587.64,0.28286677]
[1743942744981,0.57819095,588.64,587.64,0.28286677]
[1743942745283,0.57819095,588.63,587.64,0.28286677]
[1743942745577,0.57819095,588.66,587.63,0.28286677]
[1743942745781,0.57819095,588.65,587.64,0.28286677]
[1743942745981,0.57819095,588.64,587.63,0.28286677]
[1743942746177,0.57819095,588.63,587.63,0.28286677]
[1743942746383,0.57819095,588.62,587.63,0.28286677]
[1743942746582,0.57819095,588.66,587.63,0.28286677]
[1743942746782,0.57819095,588.65,587.63,0.28286677]
[1743942746987,0.57819095,588.64,587.63,0.28286677]
[1743942747183,0.57819095,588.63,587.65,1.27319059]
[1743942747388,0.29584793,588.67,587.66,0.28286677]
[1743942747889,0.33973738,588.69,587.66,0.28286677]
[1743942748289,0.33973738,588.69,587.65,1.27319059]
[1743942748482,0.57819095,588.68,587.67,0.28281152]
[1743942748686,0.57819095,588.67,587.68,0.28281152]
[1743942748887,0.57819095,588.66,587.66,0.28281152]
[1743942749089,0.57819095,588.65,587.65,1.27319059]
[1743942749290,0.57819095,588.64,587.66,0.28281993]
[1743942749494,0.57819095,588.63,587.66,0.28281993]
[1743942749795,0.57819095,588.62,587.66,0.28281993]
[1743942750093,0.57819095,588.61,587.66,0.28281993]
[1743942750294,0.57819095,588.6,587.66,0.28281993]
[1743942750492,0.57819095,588.59,587.66,0.28281993]
[1743942750690,0.57819095,588.58,587.68,1.27319059]
[1743942750896,0.57819095,588.57,587.69,0.28281993]
[1743942751091,0.57819095,588.56,587.69,0.28281993]
[1743942751293,0.57819095,588.55,587.69,0.28281993]
[1743942751494,0.57819095,588.54,587.69,0.28281993]
[1743942751692,0.57819095,588.53,587.68,1.27319059]
[1743942751895,0.57819095,588.52,587.69,0.28282107]
[1743942752094,0.57819095,588.51,587.69,0.28282107]
[1743942752294,0.57819095,588.5,587.69,0.28282107]
[1743942752494,0.57965037,588.49,587.69,0.28282107]
[1743942752698,0.57965037,588.51,587.69,0.28282107]
[1743942752899,0.57965037,588.5,587.69,0.28282107]
[1743942753100,0.57965037,588.49,587.69,0.28282107]
[1743942753301,0.57965037,588.48,587.69,0.28282107]
[1743942753501,0.57965037,588.51,587.68,1.27319059]
[1743942753702,0.57965037,588.5,587.69,0.28283348]
[1743942753902,0.57965037,588.49,587.69,0.28283348]
[1743942754099,0.57965037,588.48,587.69,0.28283348]
[1743942754299,0.57965037,588.47,587.7,0.28283356]
[1743942754498,0.57965037,588.6,587.64,0.28283356]
[1743942754797,0.57965037,588.59,587.64,0.28283356]
[1743942755096,0.57965037,588.58,587.64,0.28283356]
[1743942755303,0.57965037,588.57,587.63,1.27319059]
[1743942755501,0.57965037,588.56,587.64,0.28283398]
[1743942755696,0.57965037,588.55,587.64,0.28283398]
[1743942755897,0.57965037,588.54,587.64,0.28283398]